[Event "Live Chess"]
[Site "Chess.com"]
[Date "2023.05.21"]
[Round "-"]
[White "sup3rm0nk3y"]
[Black "Mikhail_Golubev"]
[Result "0-1"]
[WhiteElo "1319"]
[BlackElo "2482"]
[TimeControl "300"]
[EndTime "1:31:38 PDT"]
[Termination "Mikhail_Golubev won on time"]

1. e4 {[%clk 0:04:58.4]} 1... c5 {[%clk 0:04:58.5]} 2. Nf3 {[%clk 0:04:56.9]}
2... a6 {[%clk 0:04:56.7]} 3. d4 {[%clk 0:04:52.1]} 3... cxd4 {[%clk 0:04:55.5]}
4. Nxd4 {[%clk 0:04:50.8]} 4... e5 {[%clk 0:04:54.5]} 5. Nf3 {[%clk 0:04:48.6]}
5... Nc6 {[%clk 0:04:53]} 6. Bc4 {[%clk 0:04:44.8]} 6... Nf6 {[%clk 0:04:43.4]}
7. Nc3 {[%clk 0:04:41]} 7... Bb4 {[%clk 0:04:41.3]} 8. Qd3 {[%clk 0:04:16.3]}
8... h6 {[%clk 0:04:32.6]} 9. O-O {[%clk 0:04:13.3]} 9... d6 {[%clk 0:04:22]}
10. Nd5 {[%clk 0:04:11.7]} 10... Nxd5 {[%clk 0:04:18.1]} 11. Bxd5 {[%clk
0:04:10.2]} 11... Bc5 {[%clk 0:04:09.8]} 12. c3 {[%clk 0:03:54.4]} 12... O-O
{[%clk 0:04:06.9]} 13. b4 {[%clk 0:03:52.3]} 13... Ba7 {[%clk 0:04:03.5]} 14. a4
{[%clk 0:03:36.8]} 14... Be6 {[%clk 0:03:55.9]} 15. Rd1 {[%clk 0:03:25.5]} 15...
Qe7 {[%clk 0:03:39.6]} 16. Nd2 {[%clk 0:02:59.6]} 16... Kh8 {[%clk 0:03:20.8]}
17. Nc4 {[%clk 0:02:53.9]} 17... f5 {[%clk 0:03:17.4]} 18. Qh3 {[%clk
0:02:19.3]} 18... Bxf2+ {[%clk 0:03:06.8]} 19. Kh1 {[%clk 0:02:10.7]} 19... Bd7
{[%clk 0:02:47.1]} 20. Bxh6 {[%clk 0:02:02.3]} 20... gxh6 {[%clk 0:02:29.6]} 21.
Qxh6+ {[%clk 0:02:00.2]} 21... Qh7 {[%clk 0:02:29.2]} 22. Qxd6 {[%clk 0:01:47]}
22... Bg3 {[%clk 0:02:20.9]} 23. h3 {[%clk 0:01:38.6]} 23... fxe4 {[%clk
0:01:50.1]} 24. Bxe4 {[%clk 0:01:00.1]} 24... Bf5 {[%clk 0:01:48.8]} 25. Bxf5
{[%clk 0:00:51.4]} 25... Rxf5 {[%clk 0:01:48.7]} 26. Nb6 {[%clk 0:00:43.4]}
26... Rg8 {[%clk 0:01:44.2]} 27. Rf1 {[%clk 0:00:35.8]} 27... Bf4 {[%clk
0:01:32.8]} 28. Nd5 {[%clk 0:00:25.1]} 28... Qg7 {[%clk 0:01:04.4]} 29. Nxf4
{[%clk 0:00:21]} 29... exf4 {[%clk 0:01:01.5]} 30. g4 {[%clk 0:00:18]} 30...
fxg3 {[%clk 0:00:57.2]} 31. Rxf5 {[%clk 0:00:16.5]} 31... g2+ {[%clk 0:00:55.7]}
32. Kg1 {[%clk 0:00:13.6]} 32... Rd8 {[%clk 0:00:38]} 33. Rh5+ {[%clk
0:00:12.2]} 33... Kg8 {[%clk 0:00:36.9]} 34. Qe6+ {[%clk 0:00:10.5]} 34... Qf7
{[%clk 0:00:35.7]} 35. Rg5+ {[%clk 0:00:08.5]} 35... Kf8 {[%clk 0:00:34.2]} 36.
Qh6+ {[%clk 0:00:07.4]} 36... Ke7 {[%clk 0:00:30.5]} 37. Rg7 {[%clk 0:00:06.2]}
37... Rf8 {[%clk 0:00:27.8]} 38. Rxf7+ {[%clk 0:00:05.2]} 38... Rxf7 {[%clk
0:00:27]} 39. Qe3+ {[%clk 0:00:03.9]} 39... Kf8 {[%clk 0:00:22.7]} 40. Re1
{[%clk 0:00:03.8]} 40... Ne7 {[%clk 0:00:20.5]} 41. Kxg2 {[%clk 0:00:03.2]}
41... Kg8 {[%clk 0:00:18.5]} 42. Kh2 {[%clk 0:00:03.1]} 42... Rg7 {[%clk
0:00:17.3]} 43. Rg1 {[%clk 0:00:02.5]} 43... Rxg1 {[%clk 0:00:14]} 44. Kxg1
{[%clk 0:00:02.4]} 44... Kf7 {[%clk 0:00:12.7]} 45. Qf3+ {[%clk 0:00:01.1]}
45... Ke6 {[%clk 0:00:11.3]} 46. h4 {[%clk 0:00:01]} 46... Ng6 {[%clk
0:00:09.9]} 47. Qe3+ {[%clk 0:00:00.5]} 47... Kf5 {[%clk 0:00:08]} 0-1

[Event "Live Chess"]
[Site "Chess.com"]
[Date "2023.05.21"]
[Round "-"]
[White "mach247"]
[Black "stevochess11"]
[Result "1-0"]
[WhiteElo "1340"]
[BlackElo "1765"]
[TimeControl "300"]
[EndTime "1:31:47 PDT"]
[Termination "mach247 won by resignation"]

1. e4 {[%clk 0:04:58.7]} 1... c5 {[%clk 0:04:58]} 2. Nf3 {[%clk 0:04:57.7]} 2...
g6 {[%clk 0:04:56.8]} 3. c3 {[%clk 0:04:54.2]} 3... Nc6 {[%clk 0:04:51.3]} 4.
Bb5 {[%clk 0:04:45.3]} 4... Bg7 {[%clk 0:04:45.7]} 5. O-O {[%clk 0:04:44]} 5...
e6 {[%clk 0:04:44.1]} 6. Bxc6 {[%clk 0:04:42.7]} 6... bxc6 {[%clk 0:04:43]} 7.
d4 {[%clk 0:04:40.2]} 7... cxd4 {[%clk 0:04:41.5]} 8. cxd4 {[%clk 0:04:40.1]}
8... d5 {[%clk 0:04:39.9]} 9. e5 {[%clk 0:04:39.2]} 9... Ne7 {[%clk 0:04:38.8]}
10. Bg5 {[%clk 0:04:22.4]} 10... Qb6 {[%clk 0:04:36]} 11. Bxe7 {[%clk
0:04:20.4]} 11... Kxe7 {[%clk 0:04:35.4]} 12. b3 {[%clk 0:04:14]} 12... Ba6
{[%clk 0:04:31.9]} 13. Re1 {[%clk 0:04:11.6]} 13... Rac8 {[%clk 0:04:30.4]} 14.
Nc3 {[%clk 0:04:10]} 14... c5 {[%clk 0:04:25.6]} 15. Na4 {[%clk 0:04:09.2]}
15... Qb4 {[%clk 0:04:13.8]} 16. Nxc5 {[%clk 0:04:05.9]} 16... Bb5 {[%clk
0:04:09.1]} 17. a3 {[%clk 0:03:44.5]} 17... Qa5 {[%clk 0:04:02.5]} 18. b4 {[%clk
0:03:43.7]} 18... Qc7 {[%clk 0:03:54.5]} 19. Qb3 {[%clk 0:03:18.9]} 19... Bc4
{[%clk 0:03:52.5]} 20. Qb2 {[%clk 0:03:13.2]} 20... h5 {[%clk 0:03:47.6]} 21.
Rac1 {[%clk 0:03:11.9]} 21... Bh6 {[%clk 0:03:38.8]} 22. Nd2 {[%clk 0:03:07.2]}
22... Rb8 {[%clk 0:03:20.4]} 23. Rc2 {[%clk 0:02:52.2]} 23... a5 {[%clk
0:03:17.6]} 24. Nxc4 {[%clk 0:02:50.6]} 24... dxc4 {[%clk 0:03:10.7]} 25. Rxc4
{[%clk 0:02:49.9]} 25... axb4 {[%clk 0:03:03.1]} 26. Rxb4 {[%clk 0:02:41.6]}
26... Rxb4 {[%clk 0:03:01.1]} 27. axb4 {[%clk 0:02:35.3]} 27... Qc6 {[%clk
0:02:52.2]} 28. Rb1 {[%clk 0:02:30.5]} 28... Rb8 {[%clk 0:02:47.7]} 29. b5
{[%clk 0:02:29.7]} 29... Qb6 {[%clk 0:02:39.7]} 30. Ne4 {[%clk 0:02:19.7]} 30...
Rd8 {[%clk 0:02:33.8]} 31. Nd6 {[%clk 0:02:13.7]} 31... f6 {[%clk 0:02:32.3]}
32. Qb4 {[%clk 0:02:07.7]} 32... fxe5 {[%clk 0:02:30.1]} 33. Nc4+ {[%clk
0:02:05.4]} 1-0

[Event "Live Chess"]
[Site "Chess.com"]
[Date "2023.05.21"]
[Round "-"]
[White "EdenHazard8"]
[Black "Tema1107"]
[Result "0-1"]
[WhiteElo "1944"]
[BlackElo "1948"]
[TimeControl "300"]
[EndTime "1:32:00 PDT"]
[Termination "Tema1107 won by checkmate"]

1. e4 {[%clk 0:04:58.5]} 1... c5 {[%clk 0:04:58.4]} 2. Nc3 {[%clk 0:04:57.1]}
2... d6 {[%clk 0:04:57.8]} 3. f4 {[%clk 0:04:56.5]} 3... Nf6 {[%clk 0:04:57.1]}
4. Nf3 {[%clk 0:04:55.1]} 4... g6 {[%clk 0:04:56.2]} 5. Bc4 {[%clk 0:04:52.9]}
5... Bg7 {[%clk 0:04:55.1]} 6. d3 {[%clk 0:04:51.3]} 6... O-O {[%clk 0:04:54.5]}
7. O-O {[%clk 0:04:50]} 7... Nc6 {[%clk 0:04:53.2]} 8. Qe1 {[%clk 0:04:48.2]}
8... a6 {[%clk 0:04:50.4]} 9. a4 {[%clk 0:04:46.8]} 9... e5 {[%clk 0:04:46.6]}
10. f5 {[%clk 0:04:44.8]} 10... Nd4 {[%clk 0:04:40]} 11. Qh4 {[%clk 0:04:41.1]}
11... d5 {[%clk 0:04:12.4]} 12. Nxd5 {[%clk 0:04:38.7]} 12... Nxd5 {[%clk
0:04:10.1]} 13. Qxd8 {[%clk 0:04:38.6]} 13... Rxd8 {[%clk 0:04:07]} 14. Bxd5
{[%clk 0:04:38]} 14... gxf5 {[%clk 0:04:01.4]} 15. Ng5 {[%clk 0:04:26.9]} 15...
Rxd5 {[%clk 0:03:51.9]} 16. exd5 {[%clk 0:04:22.5]} 16... b6 {[%clk 0:03:45.4]}
17. c3 {[%clk 0:04:17.7]} 17... Nb3 {[%clk 0:03:41.7]} 18. Ra3 {[%clk
0:04:09.8]} 18... Nxc1 {[%clk 0:03:39.9]} 19. Rxc1 {[%clk 0:04:09.7]} 19... Bb7
{[%clk 0:03:37.4]} 20. c4 {[%clk 0:04:08.2]} 20... Bh6 {[%clk 0:03:32.7]} 21. h4
{[%clk 0:04:04.8]} 21... f6 {[%clk 0:03:30.6]} 22. Rf1 {[%clk 0:04:02.6]} 22...
fxg5 {[%clk 0:03:28.1]} 23. Rxf5 {[%clk 0:04:01.2]} 23... gxh4 {[%clk
0:03:22.6]} 24. Rxe5 {[%clk 0:03:58.5]} 24... Rf8 {[%clk 0:03:16.7]} 25. Re7
{[%clk 0:03:52.5]} 25... Bc8 {[%clk 0:03:08.7]} 26. d6 {[%clk 0:03:49.7]} 26...
Bg5 {[%clk 0:03:01.7]} 27. Rc7 {[%clk 0:03:45.3]} 27... Be3+ {[%clk 0:02:35.4]}
28. Kh2 {[%clk 0:03:39.8]} 28... Bf4+ {[%clk 0:02:31.6]} 29. Kh1 {[%clk
0:03:37.8]} 29... Bxd6 {[%clk 0:02:29.8]} 30. Rc6 {[%clk 0:03:36.2]} 30... Rf1#
{[%clk 0:02:28.5]} 0-1

[Event "Live Chess"]
[Site "Chess.com"]
[Date "2023.05.21"]
[Round "-"]
[White "MartynColebrook"]
[Black "Richardallis"]
[Result "0-1"]
[WhiteElo "1097"]
[BlackElo "1874"]
[TimeControl "300"]
[EndTime "1:32:04 PDT"]
[Termination "Richardallis won by resignation"]

1. e4 {[%clk 0:04:51.7]} 1... d5 {[%clk 0:04:58.5]} 2. exd5 {[%clk 0:04:50.3]}
2... Nf6 {[%clk 0:04:58]} 3. c4 {[%clk 0:04:45.8]} 3... c6 {[%clk 0:04:56.8]} 4.
dxc6 {[%clk 0:04:41.9]} 4... Nxc6 {[%clk 0:04:56.4]} 5. Nf3 {[%clk 0:04:38.2]}
5... e5 {[%clk 0:04:55.8]} 6. Nc3 {[%clk 0:04:33.6]} 6... Bg4 {[%clk 0:04:54.8]}
7. Be2 {[%clk 0:04:30.6]} 7... Bc5 {[%clk 0:04:53.3]} 8. O-O {[%clk 0:04:26.6]}
8... O-O {[%clk 0:04:52]} 9. d3 {[%clk 0:04:18.1]} 9... Re8 {[%clk 0:04:48.7]}
10. Bg5 {[%clk 0:04:13.3]} 10... h6 {[%clk 0:04:46.9]} 11. Bh4 {[%clk
0:04:11.1]} 11... g5 {[%clk 0:04:44.4]} 12. Bg3 {[%clk 0:04:09.7]} 12... Nh5
{[%clk 0:04:39.4]} 13. h3 {[%clk 0:03:54.3]} 13... Bxf3 {[%clk 0:04:37]} 14.
Bxf3 {[%clk 0:03:48.7]} 14... Nxg3 {[%clk 0:04:36.2]} 15. Bxc6 {[%clk
0:03:36.4]} 15... bxc6 {[%clk 0:04:33.2]} 16. Ne4 {[%clk 0:03:24.9]} 16... Nxe4
{[%clk 0:04:19.5]} 17. dxe4 {[%clk 0:03:23.1]} 17... Qxd1 {[%clk 0:04:18.8]} 18.
Raxd1 {[%clk 0:03:19.2]} 18... Bd4 {[%clk 0:04:18.1]} 19. b3 {[%clk 0:03:15.4]}
19... Red8 {[%clk 0:04:16.9]} 20. g3 {[%clk 0:03:06]} 20... Rd7 {[%clk
0:04:14.6]} 21. Kg2 {[%clk 0:03:04.6]} 21... Rad8 {[%clk 0:04:12.8]} 22. f4
{[%clk 0:02:57.9]} 22... exf4 {[%clk 0:04:05.8]} 23. gxf4 {[%clk 0:02:53.2]}
23... gxf4 {[%clk 0:04:05.2]} 24. Rxf4 {[%clk 0:02:45.8]} 24... Be5 {[%clk
0:04:04.5]} 25. Rxd7 {[%clk 0:02:40.8]} 25... Rxd7 {[%clk 0:04:03.3]} 26. Rg4+
{[%clk 0:02:35.4]} 26... Kf8 {[%clk 0:04:02]} 27. Rh4 {[%clk 0:02:22]} 27... Rd6
{[%clk 0:04:00.7]} 28. Kf3 {[%clk 0:02:19.6]} 28... Rg6 {[%clk 0:04:00.1]} 29.
Rh5 {[%clk 0:02:06.5]} 29... f6 {[%clk 0:03:58.8]} 30. Rf5 {[%clk 0:01:42.9]}
30... Rg5 {[%clk 0:03:57]} 31. Rxg5 {[%clk 0:01:40.6]} 31... hxg5 {[%clk
0:03:55.3]} 32. Kg4 {[%clk 0:01:39]} 32... Kg7 {[%clk 0:03:53.7]} 33. h4 {[%clk
0:01:37.9]} 33... gxh4 {[%clk 0:03:52.7]} 34. Kxh4 {[%clk 0:01:36.9]} 34... Kf7
{[%clk 0:03:51.9]} 35. Kg4 {[%clk 0:01:35.5]} 35... Ke6 {[%clk 0:03:51.3]} 36.
Kf3 {[%clk 0:01:32.9]} 36... a5 {[%clk 0:03:49.7]} 37. a3 {[%clk 0:01:30]} 37...
Bb2 {[%clk 0:03:48.2]} 38. a4 {[%clk 0:01:26.4]} 38... Ke5 {[%clk 0:03:46.4]}
39. Ke3 {[%clk 0:01:24.9]} 39... Bd4+ {[%clk 0:03:45.1]} 40. Ke2 {[%clk
0:01:20.7]} 40... Kxe4 {[%clk 0:03:44]} 41. Kd2 {[%clk 0:01:14]} 41... f5 {[%clk
0:03:43.1]} 42. Ke2 {[%clk 0:01:12.5]} 42... f4 {[%clk 0:03:42.1]} 0-1

[Event "Live Chess"]
[Site "Chess.com"]
[Date "2023.05.21"]
[Round "-"]
[White "Goblinbasher"]
[Black "KeithArkell"]
[Result "0-1"]
[WhiteElo "1234"]
[BlackElo "2516"]
[TimeControl "300"]
[EndTime "1:32:26 PDT"]
[Termination "KeithArkell won by resignation"]

1. e4 {[%clk 0:04:55.3]} 1... c6 {[%clk 0:04:58.9]} 2. Nc3 {[%clk 0:04:51.7]}
2... d5 {[%clk 0:04:57.9]} 3. exd5 {[%clk 0:04:50.7]} 3... cxd5 {[%clk 0:04:57]}
4. d4 {[%clk 0:04:46.6]} 4... Nf6 {[%clk 0:04:55.9]} 5. Nf3 {[%clk 0:04:38.8]}
5... Nc6 {[%clk 0:04:54.6]} 6. h3 {[%clk 0:04:36.2]} 6... Bf5 {[%clk 0:04:52.7]}
7. g4 {[%clk 0:04:32.9]} 7... Be4 {[%clk 0:04:51.1]} 8. Bg2 {[%clk 0:04:30.7]}
8... Bxf3 {[%clk 0:04:48.8]} 9. Bxf3 {[%clk 0:04:29.2]} 9... e6 {[%clk
0:04:48.4]} 10. Bd2 {[%clk 0:04:25.1]} 10... Nxd4 {[%clk 0:04:46.5]} 11. Be3
{[%clk 0:04:21.5]} 11... Nxf3+ {[%clk 0:04:45.5]} 12. Qxf3 {[%clk 0:04:20.1]}
12... Bb4 {[%clk 0:04:43.5]} 13. Bd4 {[%clk 0:04:16.3]} 13... O-O {[%clk
0:04:40.3]} 14. O-O-O {[%clk 0:04:09]} 14... Rc8 {[%clk 0:04:35.3]} 15. h4
{[%clk 0:04:06.1]} 15... Bc5 {[%clk 0:03:42.9]} 16. Bxc5 {[%clk 0:03:40.9]}
16... Rxc5 {[%clk 0:03:41.1]} 17. g5 {[%clk 0:03:39.9]} 17... Ne8 {[%clk
0:03:33.9]} 18. Qe3 {[%clk 0:03:26.8]} 18... Rc4 {[%clk 0:03:26.6]} 19. Rd4
{[%clk 0:03:19]} 19... Nd6 {[%clk 0:03:24.9]} 20. f3 {[%clk 0:03:09.8]} 20...
Nf5 {[%clk 0:03:22.9]} 21. Qe5 {[%clk 0:03:03.4]} 21... Rxd4 {[%clk 0:03:18.3]}
22. h5 {[%clk 0:02:58]} 22... Qb8 {[%clk 0:03:16.8]} 23. Qe1 {[%clk 0:02:50.1]}
23... Qf4+ {[%clk 0:03:15.8]} 24. Kb1 {[%clk 0:02:48.3]} 24... Qxg5 {[%clk
0:03:15]} 25. Nb5 {[%clk 0:02:39.3]} 25... Rc4 {[%clk 0:03:09.6]} 26. Nc3 {[%clk
0:02:32]} 26... Rfc8 {[%clk 0:03:07.1]} 27. Rg1 {[%clk 0:02:26.9]} 27... Qe3
{[%clk 0:03:03.7]} 28. Qd1 {[%clk 0:02:07.2]} 28... Qb6 {[%clk 0:02:48.8]} 29.
Rg5 {[%clk 0:02:00.9]} 29... Rxc3 {[%clk 0:02:46.2]} 0-1

[Event "Live Chess"]
[Site "Chess.com"]
[Date "2023.05.21"]
[Round "-"]
[White "Woodpusher500"]
[Black "Singapourfeuj"]
[Result "0-1"]
[WhiteElo "996"]
[BlackElo "2194"]
[TimeControl "300"]
[EndTime "1:32:44 PDT"]
[Termination "Singapourfeuj won by checkmate"]

1. e4 {[%clk 0:04:54.3]} 1... c5 {[%clk 0:04:58.9]} 2. Nf3 {[%clk 0:04:51.8]}
2... d6 {[%clk 0:04:58]} 3. d4 {[%clk 0:04:48.4]} 3... cxd4 {[%clk 0:04:56]} 4.
Nxd4 {[%clk 0:04:47]} 4... Nf6 {[%clk 0:04:55.2]} 5. Nc3 {[%clk 0:04:44.8]} 5...
a6 {[%clk 0:04:54.3]} 6. Bg5 {[%clk 0:04:40.2]} 6... Nbd7 {[%clk 0:04:53.1]} 7.
f4 {[%clk 0:04:38.1]} 7... Qc7 {[%clk 0:04:51.6]} 8. Qf3 {[%clk 0:04:35.2]} 8...
h6 {[%clk 0:04:50.8]} 9. Bh4 {[%clk 0:04:29.9]} 9... g5 {[%clk 0:04:49.1]} 10.
fxg5 {[%clk 0:04:19.3]} 10... Ne5 {[%clk 0:04:43]} 11. Qf2 {[%clk 0:04:07.6]}
11... Nfg4 {[%clk 0:04:38.4]} 12. Qe2 {[%clk 0:03:55.5]} 12... hxg5 {[%clk
0:04:36.9]} 13. Bxg5 {[%clk 0:03:52.5]} 13... Qc5 {[%clk 0:04:34.9]} 14. O-O-O
{[%clk 0:03:47]} 14... Rg8 {[%clk 0:04:32.8]} 15. Bh4 {[%clk 0:03:37.3]} 15...
Bd7 {[%clk 0:04:25.5]} 16. h3 {[%clk 0:03:30.6]} 16... Bh6+ {[%clk 0:04:15.8]}
17. Kb1 {[%clk 0:03:26.6]} 17... Ne3 {[%clk 0:04:14.8]} 18. Rd2 {[%clk
0:03:16.2]} 18... N3c4 {[%clk 0:04:12.2]} 19. Rd1 {[%clk 0:03:09]} 19... Qb4
{[%clk 0:04:08.7]} 20. b3 {[%clk 0:02:58.8]} 20... Qxc3 {[%clk 0:04:05.6]} 21.
Qe1 {[%clk 0:02:45.1]} 21... Qb2# {[%clk 0:04:03.9]} 0-1

[Event "Live Chess"]
[Site "Chess.com"]
[Date "2023.05.21"]
[Round "-"]
[White "elephantgerrald"]
[Black "ms_lilley"]
[Result "0-1"]
[WhiteElo "706"]
[BlackElo "598"]
[TimeControl "300"]
[EndTime "1:33:11 PDT"]
[Termination "ms_lilley won on time"]

1. e4 {[%clk 0:04:32.7]} 1... e6 {[%clk 0:04:57.3]} 2. d4 {[%clk 0:04:31.6]}
2... d5 {[%clk 0:04:55.6]} 3. exd5 {[%clk 0:04:30.2]} 3... exd5 {[%clk
0:04:54.1]} 4. Qe2+ {[%clk 0:04:28.8]} 4... Ne7 {[%clk 0:04:52.2]} 5. Bg5 {[%clk
0:04:26.9]} 5... h6 {[%clk 0:04:49.2]} 6. Bxe7 {[%clk 0:04:25.6]} 6... Bxe7
{[%clk 0:04:45.5]} 7. Nc3 {[%clk 0:04:24]} 7... c6 {[%clk 0:04:43.5]} 8. O-O-O
{[%clk 0:04:09.6]} 8... a6 {[%clk 0:04:40.8]} 9. Re1 {[%clk 0:04:04.7]} 9... O-O
{[%clk 0:04:38.5]} 10. Qxe7 {[%clk 0:04:03.2]} 10... Qxe7 {[%clk 0:04:32.9]} 11.
Rxe7 {[%clk 0:04:01.7]} 11... Nd7 {[%clk 0:04:25.6]} 12. Nf3 {[%clk 0:03:44.1]}
12... Nf6 {[%clk 0:04:23.6]} 13. Bd3 {[%clk 0:03:39.4]} 13... Bg4 {[%clk
0:04:19.8]} 14. Ne5 {[%clk 0:03:33.4]} 14... Be6 {[%clk 0:03:58.3]} 15. Rxb7
{[%clk 0:03:12.8]} 15... c5 {[%clk 0:03:45.4]} 16. dxc5 {[%clk 0:02:54.4]} 16...
d4 {[%clk 0:03:43.2]} 17. Ne4 {[%clk 0:02:51.1]} 17... Nxe4 {[%clk 0:03:38.3]}
18. Bxe4 {[%clk 0:02:38.3]} 18... Bxa2 {[%clk 0:03:35.2]} 19. Rxf7 {[%clk
0:02:11.6]} 19... Rae8 {[%clk 0:03:18.4]} 20. Rxf8+ {[%clk 0:02:05.3]} 20...
Rxf8 {[%clk 0:03:16]} 21. f3 {[%clk 0:01:51.8]} 21... Be6 {[%clk 0:03:08.9]} 22.
g4 {[%clk 0:01:27.3]} 22... g5 {[%clk 0:03:06.9]} 23. h4 {[%clk 0:01:09.6]}
23... Kg7 {[%clk 0:02:58.4]} 24. hxg5 {[%clk 0:01:01.3]} 24... hxg5 {[%clk
0:02:56.1]} 25. Rh7+ {[%clk 0:00:56.8]} 25... Kf6 {[%clk 0:02:48.4]} 26. f4
{[%clk 0:00:44.6]} 26... gxf4 {[%clk 0:02:43]} 27. g5+ {[%clk 0:00:35.6]} 27...
Kxg5 {[%clk 0:02:41.3]} 28. Nf3+ {[%clk 0:00:32.9]} 28... Kf6 {[%clk 0:02:35.5]}
29. Rh6+ {[%clk 0:00:29]} 29... Ke7 {[%clk 0:02:32.7]} 0-1

[Event "Live Chess"]
[Site "Chess.com"]
[Date "2023.05.21"]
[Round "-"]
[White "JuperLuper"]
[Black "elizaveta_frundina"]
[Result "1-0"]
[WhiteElo "1221"]
[BlackElo "1564"]
[TimeControl "300"]
[EndTime "1:33:14 PDT"]
[Termination "JuperLuper won by checkmate"]

1. c4 {[%clk 0:04:57.3]} 1... e5 {[%clk 0:04:57.7]} 2. Nc3 {[%clk 0:04:55.6]}
2... Nc6 {[%clk 0:04:56.3]} 3. e3 {[%clk 0:04:54.3]} 3... g6 {[%clk 0:04:54.8]}
4. d4 {[%clk 0:04:52.7]} 4... Bg7 {[%clk 0:04:49.5]} 5. Nf3 {[%clk 0:04:45.4]}
5... e4 {[%clk 0:04:43]} 6. Nxe4 {[%clk 0:04:43.5]} 6... d6 {[%clk 0:04:40.2]}
7. Be2 {[%clk 0:04:35.4]} 7... Bf5 {[%clk 0:04:37.5]} 8. Nc3 {[%clk 0:04:34.4]}
8... Nf6 {[%clk 0:04:34.7]} 9. a3 {[%clk 0:04:30.2]} 9... O-O {[%clk 0:04:29.6]}
10. O-O {[%clk 0:04:28.2]} 10... d5 {[%clk 0:04:27.6]} 11. Qb3 {[%clk 0:04:19]}
11... Na5 {[%clk 0:04:20.1]} 12. Qb5 {[%clk 0:04:12.3]} 12... Nxc4 {[%clk
0:04:05.1]} 13. Bxc4 {[%clk 0:04:10.3]} 13... dxc4 {[%clk 0:04:02.4]} 14. Qxc4
{[%clk 0:03:58]} 14... c6 {[%clk 0:03:53.6]} 15. Re1 {[%clk 0:03:55.6]} 15...
Re8 {[%clk 0:03:47.2]} 16. Qb3 {[%clk 0:03:52.2]} 16... Ne4 {[%clk 0:03:42.8]}
17. Nxe4 {[%clk 0:03:44.9]} 17... Bxe4 {[%clk 0:03:41.2]} 18. Nd2 {[%clk
0:03:43]} 18... Bd5 {[%clk 0:03:34.2]} 19. Qxb7 {[%clk 0:03:36.2]} 19... Qg5
{[%clk 0:03:21.4]} 20. e4 {[%clk 0:03:31]} 20... Bxd4 {[%clk 0:03:02.2]} 21. Nf3
{[%clk 0:03:23.6]} 21... Qf6 {[%clk 0:02:41.5]} 22. Nxd4 {[%clk 0:03:14.8]}
22... Qxd4 {[%clk 0:02:37.6]} 23. Be3 {[%clk 0:03:07]} 23... Qxe4 {[%clk
0:02:29.8]} 24. f3 {[%clk 0:02:43]} 24... Qd3 {[%clk 0:02:21.5]} 25. Bh6 {[%clk
0:02:34]} 25... Rxe1+ {[%clk 0:02:14.4]} 26. Rxe1 {[%clk 0:02:31.6]} 26... Qd2
{[%clk 0:02:03.1]} 27. Re7 {[%clk 0:01:54]} 27... Qd1+ {[%clk 0:01:46.3]} 28.
Kf2 {[%clk 0:01:50.7]} 28... Qd4+ {[%clk 0:01:27.8]} 29. Kg3 {[%clk 0:01:38.2]}
29... Rd8 {[%clk 0:01:05.5]} 30. Qc7 {[%clk 0:01:22.3]} 30... Bb3 {[%clk
0:00:33.5]} 31. Re4 {[%clk 0:01:05.6]} 31... Qd5 {[%clk 0:00:19.4]} 32. Qe7
{[%clk 0:01:00.4]} 32... Qd1 {[%clk 0:00:06.6]} 33. Qe8+ {[%clk 0:00:58.3]}
33... Rxe8 {[%clk 0:00:02.5]} 34. Rxe8# {[%clk 0:00:58.2]} 1-0

[Event "Live Chess"]
[Site "Chess.com"]
[Date "2023.05.21"]
[Round "-"]
[White "MJMykh"]
[Black "Hacker_2009"]
[Result "0-1"]
[WhiteElo "1101"]
[BlackElo "1916"]
[TimeControl "300"]
[EndTime "1:33:17 PDT"]
[Termination "Hacker_2009 won by resignation"]

1. e4 {[%clk 0:04:56]} 1... c5 {[%clk 0:04:58.2]} 2. Nf3 {[%clk 0:04:54.8]} 2...
d6 {[%clk 0:04:56.4]} 3. h3 {[%clk 0:04:53.4]} 3... e6 {[%clk 0:04:55.3]} 4. Nc3
{[%clk 0:04:52.9]} 4... Nf6 {[%clk 0:04:54.9]} 5. Bb5+ {[%clk 0:04:52.3]} 5...
Bd7 {[%clk 0:04:53.6]} 6. Bxd7+ {[%clk 0:04:51.7]} 6... Qxd7 {[%clk 0:04:53.5]}
7. O-O {[%clk 0:04:51.2]} 7... Be7 {[%clk 0:04:52.8]} 8. d3 {[%clk 0:04:50.5]}
8... O-O {[%clk 0:04:52.4]} 9. Bg5 {[%clk 0:04:50.1]} 9... h6 {[%clk 0:04:50.8]}
10. Bxf6 {[%clk 0:04:49.1]} 10... Bxf6 {[%clk 0:04:49.3]} 11. Qd2 {[%clk
0:04:48.5]} 11... Nc6 {[%clk 0:04:48.2]} 12. a3 {[%clk 0:04:47.9]} 12... d5
{[%clk 0:04:47.6]} 13. exd5 {[%clk 0:04:45.9]} 13... exd5 {[%clk 0:04:46.7]} 14.
Rab1 {[%clk 0:04:44.4]} 14... b6 {[%clk 0:04:45.8]} 15. Nb5 {[%clk 0:04:29.2]}
15... Ne5 {[%clk 0:04:43.4]} 16. Nxe5 {[%clk 0:04:27.8]} 16... Bxe5 {[%clk
0:04:42.3]} 17. Nc3 {[%clk 0:04:23.8]} 17... Rfe8 {[%clk 0:04:40.1]} 18. a4
{[%clk 0:04:18.4]} 18... Rad8 {[%clk 0:04:37.5]} 19. Ne2 {[%clk 0:04:15.6]}
19... Qxa4 {[%clk 0:04:35.9]} 20. b3 {[%clk 0:04:14.6]} 20... Qc6 {[%clk
0:04:33.9]} 21. Nf4 {[%clk 0:04:11.8]} 21... Bc7 {[%clk 0:04:30]} 22. Ne2 {[%clk
0:04:08.1]} 22... Qd6 {[%clk 0:04:27.9]} 23. g3 {[%clk 0:04:04.7]} 23... Qe5
{[%clk 0:04:26.7]} 24. Rfe1 {[%clk 0:03:58.4]} 24... Qf6 {[%clk 0:04:24.6]} 25.
Nc3 {[%clk 0:03:54.7]} 25... Be5 {[%clk 0:04:20.2]} 26. Na4 {[%clk 0:03:47.3]}
26... Qf5 {[%clk 0:04:13]} 27. Kg2 {[%clk 0:03:42.3]} 27... Bc7 {[%clk
0:04:05.2]} 28. Rxe8+ {[%clk 0:03:36]} 28... Rxe8 {[%clk 0:04:03.6]} 29. g4
{[%clk 0:03:12.3]} 29... Qe5 {[%clk 0:04:00.3]} 30. Kf1 {[%clk 0:03:04.7]} 30...
Qh2 {[%clk 0:03:58.4]} 31. f3 {[%clk 0:02:43.7]} 31... Qxd2 {[%clk 0:03:50.7]}
0-1